fUSD/lending_fUSD_20251226
["ID","MTS","AMOUNT","RATE_DAILY","PERIOD"]
[399845023,1766734356622,-182.00002443,0.00032876,120]
[399845024,1766734356631,-357.13953109,0.00032876,120]
[399845025,1766734356641,-367.48700193,0.00032876,120]
[399845026,1766734356650,-462.060669,0.00032876,120]
[399845027,1766734356660,-500.88589192,0.00032876,120]
[399845028,1766734356669,-352.96453013,0.00032876,120]
[399845029,1766734356679,-469.22305412,0.00032876,120]
[399845030,1766734356689,-312.37719135,0.00032876,120]
[399845031,1766734356699,-364.56996326,0.00032876,120]
[399845032,1766734356708,-521.88,0.00032876,60]
[399845033,1766734356718,-521.88,0.00032876,60]
[399845034,1766734356727,-529.38779009,0.00032876,120]
[399845035,1766734356737,-521.88,0.00032876,60]
[399845036,1766734356747,-521.88,0.00032876,60]
[399845037,1766734356756,-521.88,0.00032876,60]
[399845038,1766734356766,-521.88,0.00032876,60]
[399845039,1766734356775,-521.88,0.00032876,60]
[399845040,1766734356785,-521.88,0.00032876,60]
[399845041,1766734356794,-521.88,0.00032876,60]
[399845042,1766734356803,-368.88508807,0.00032876,120]
[399845043,1766734356813,-521.88,0.00032876,60]
[399845044,1766734356822,-521.88,0.00032876,60]
[399845045,1766734356831,-521.88,0.00032876,60]
[399845046,1766734356840,-233.3415576,0.00032876,120]
[399845047,1766734356850,-521.88,0.00032876,60]
[399845048,1766734356859,-521.88,0.00032876,60]
[399845049,1766734356869,-521.88,0.00032876,60]
[399845050,1766734356878,-521.88,0.00032876,60]
[399845051,1766734356888,-521.88,0.00032876,60]
[399845052,1766734356898,-440.27690652,0.00032876,120]
[399845053,1766734356908,-521.88,0.00032876,60]
[399845054,1766734356918,-274.93672298,0.00032876,120]
[399845055,1766734356928,-521.88,0.00032876,60]
[399845056,1766734356938,-521.88,0.00032876,60]
[399845057,1766734356948,-521.88,0.00032876,60]
[399845058,1766734356961,-521.88,0.00032876,60]
[399845059,1766734356973,-521.88,0.00032876,60]
[399845060,1766734356983,-522.0,0.00032876,60]
[399845061,1766734356992,-420.26949539,0.00032876,120]
[399845062,1766734357002,-186.70241147,0.00032876,120]
[399845063,1766734357012,-485.40035081,0.00032876,120]
[399845064,1766734357022,-433.0678173,0.00032876,120]
[399845065,1766734357032,-371.58871977,0.00032876,120]
[399845066,1766734357042,-285.47621209,0.00032876,120]
[399845067,1766734357051,-398.21050648,0.00032876,120]
[399845068,1766734357060,-484.58768271,0.00032876,120]
[399845069,1766734357070,-382.33255963,0.00032876,120]
[399845070,1766734357079,-425.45778447,0.00032876,120]
[399845071,1766734357091,-385.34547215,0.00032876,120]
[399845072,1766734357100,-1250.54,0.00032876,120]
[399845073,1766734357109,-1250.54,0.00032876,120]
[399845074,1766734357119,-1250.54,0.00032876,120]
[399845075,1766734357128,-1250.54,0.00032876,120]
[399845076,1766734357139,-1250.54,0.00032876,120]
[399845077,1766734357148,-205.13124115,0.00032876,120]
[399845078,1766734357158,-1250.54,0.00032876,120]
[399845079,1766734357167,-1250.54,0.00032876,120]
[399845080,1766734357178,-475.26889976,0.00032876,120]
[399845081,1766734357187,-1250.54,0.00032876,120]
[399845082,1766734357197,-1250.54,0.00032876,120]
[399845083,1766734357208,-1250.54,0.00032876,120]
[399845084,1766734357217,-354.79277646,0.00032876,2]
[399845085,1766734357228,-1250.54,0.00032876,120]
[399845086,1766734357237,-1250.54,0.00032876,120]
[399845087,1766734357247,-1250.54,0.00032876,120]
[399845088,1766734357256,-1250.54,0.00032876,120]
[399845089,1766734357266,-1250.54,0.00032876,120]
[399845090,1766734357276,-204.97564722,0.00032876,120]
[399845091,1766734357285,-1250.54,0.00032876,120]
[399845092,1766734357295,-222.87096507,0.00032876,120]
[399845093,1766734357304,-1250.54,0.00032876,120]
[399845094,1766734357313,-1250.54,0.00032876,120]
[399845095,1766734357323,-1250.54,0.00032876,120]
[399845096,1766734357332,-1250.54,0.00032876,120]
[399845097,1766734357342,-1250.54,0.00032876,120]
[399845098,1766734357351,-1250.54,0.00032876,120]
[399845099,1766734357361,-1250.54,0.00032876,120]
[399845100,1766734357370,-360.09578498,0.00032876,120]
[399845101,1766734357380,-1250.65921474,0.00032876,120]
[399845102,1766734357389,-469.47119028,0.00032876,120]
[399845103,1766734357399,-240.27249634,0.00032876,120]
[399845104,1766734357408,-267.92196789,0.00032876,120]
[399845105,1766734357418,-495.53478644,0.00032876,120]
[399845106,1766734357427,-282.61653198,0.00032876,120]
[399845107,1766734357437,-297.98371341,0.00032876,120]
[399845108,1766734357446,-352.21416155,0.00032876,120]
[399845109,1766734357456,-217.81842758,0.00032876,2]
[399845110,1766734357465,-439.25486734,0.00032876,120]
[399845111,1766734357475,-487.12996523,0.00032876,120]
[399845112,1766734357485,-463.67953969,0.00032876,120]
[399845113,1766734357495,-481.00898419,0.00032876,120]
[399845114,1766734357504,-2242.54,0.00032876,30]
[399845115,1766734357515,-233.7717832,0.00032876,120]
[399845116,1766734357525,-2242.54,0.00032876,30]
[399845117,1766734357534,-2242.54,0.00032876,30]
[399845118,1766734357544,-2242.54,0.00032876,30]
[399845119,1766734357553,-2242.54,0.00032876,30]
[399845120,1766734357568,-399.80317336,0.00032876,120]
[399845121,1766734357582,-2242.54,0.00032876,30]
[399845122,1766734357591,-2242.54,0.00032876,30]
[399845123,1766734357601,-2242.54,0.00032876,30]
[399845124,1766734357611,-2242.54,0.00032876,30]
[399845125,1766734357621,-2242.54,0.00032876,30]
[399845126,1766734357630,-2242.54,0.00032876,30]
[399845127,1766734357640,-2242.54,0.00032876,30]
[399845128,1766734357649,-2242.54,0.00032876,30]
[399845129,1766734357660,-2242.54,0.00032876,30]
[399845130,1766734357670,-2242.54,0.00032876,30]
[399845131,1766734357680,-2242.54,0.00032876,30]
[399845132,1766734357690,-2242.54,0.00032876,30]
[399845133,1766734357700,-2242.54,0.00032876,30]
[399845134,1766734357710,-2242.54,0.00032876,30]
[399845135,1766734357720,-2242.54,0.00032876,30]
[399845136,1766734357730,-2242.54,0.00032876,30]
[399845137,1766734357740,-2242.54,0.00032876,30]
[399845138,1766734357750,-2242.54,0.00032876,30]
[399845139,1766734357760,-2242.69742675,0.00032876,30]
[399845140,1766734357770,-400.97982816,0.00032876,120]
[399845141,1766734357780,-212.93640102,0.00032876,120]
[399845142,1766734357789,-2728.99,0.00032876,120]
[399845143,1766734357799,-2728.99,0.00032876,120]
[399845144,1766734357809,-319.06309079,0.00032876,120]
[399845145,1766734357819,-2728.99,0.00032876,120]
[399845146,1766734357828,-2728.99,0.00032876,120]
[399845147,1766734357838,-2728.99,0.00032876,120]
[399845148,1766734357847,-2728.99,0.00032876,120]
[399845149,1766734357857,-2728.99,0.00032876,120]
[399845150,1766734357866,-2728.99,0.00032876,120]
[399845151,1766734357877,-2728.99,0.00032876,120]
[399845152,1766734357886,-188.99932232,0.00032876,120]
[399845153,1766734357896,-2728.99,0.00032876,120]
[399845154,1766734357906,-2728.99,0.00032876,120]
[399845155,1766734357916,-2728.99,0.00032876,120]
[399845156,1766734357925,-2728.99,0.00032876,120]
[399845157,1766734357935,-162.38312941,0.00032876,120]
[399845158,1766734357944,-2728.99,0.00032876,120]
[399845159,1766734357955,-2728.99,0.00032876,120]
[399845160,1766734357965,-2728.99,0.00032876,120]
[399845161,1766734357975,-2728.99,0.00032876,120]
[399845162,1766734357985,-2728.99,0.00032876,120]
[399845163,1766734357995,-2728.99,0.00032876,120]
[399845164,1766734358005,-2728.99,0.00032876,120]
[399845165,1766734358014,-2728.99,0.00032876,120]
[399845166,1766734358025,-169.88070447,0.00032876,120]
[399845167,1766734358037,-2728.99,0.00032876,120]
[399845168,1766734358048,-2728.99,0.00032876,120]
[399845169,1766734358059,-2729.00500635,0.00032876,120]
[399845170,1766734358070,-300.0,0.00032876,2]
[399845171,1766734358081,-300.0,0.00032876,2]
[399845172,1766734358091,-300.0,0.00032876,2]
[399845173,1766734358101,-300.0,0.00032876,2]
[399845174,1766734358112,-481.35015491,0.00032876,120]
[399845175,1766734358122,-300.0,0.00032876,2]
[399845176,1766734358133,-300.0,0.00032876,2]
[399845177,1766734358147,-300.0,0.00032876,2]
[399845178,1766734358157,-300.0,0.00032876,2]
[399845179,1766734358167,-273.38982951,0.00032876,120]
[399845180,1766734358179,-300.0,0.00032876,2]
[399845181,1766734358189,-165.84726904,0.00032876,120]
[399845182,1766734358199,-300.0,0.00032876,2]
[399845183,1766734358209,-300.0,0.00032876,2]
[399845184,1766734358222,-300.0,0.00032876,2]
[399845185,1766734358232,-301.03119037,0.00032876,2]
[399845186,1766734358242,-301.19388046,0.00032876,120]
[399845187,1766734358253,-465.22897163,0.00032876,120]
[399845188,1766734358263,-500.0,0.00032876,120]
[399845189,1766734358273,-500.0,0.00032876,120]
[399845190,1766734358283,-500.0,0.00032876,120]
[399845191,1766734358293,-500.0,0.00032876,120]
[399845192,1766734358303,-500.0,0.00032876,120]
[399845193,1766734358313,-500.0,0.00032876,120]
[399845194,1766734358323,-500.0,0.00032876,120]
[399845195,1766734358333,-500.0,0.00032876,120]
[399845196,1766734358343,-500.0,0.00032876,120]
[399845197,1766734358353,-500.0,0.00032876,120]
[399845198,1766734358363,-500.0,0.00032876,120]
[399845199,1766734358373,-500.0,0.00032876,120]
[399845200,1766734358383,-500.0,0.00032876,120]
[399845201,1766734358393,-567.43860525,0.00032876,120]
[399845202,1766734358402,-388.98795038,0.00032876,120]
[399845203,1766734358413,-500.0,0.00032876,120]
[399845204,1766734358423,-500.0,0.00032876,120]
[399845205,1766734358432,-500.0,0.00032876,120]
[399845206,1766734358443,-500.0,0.00032876,120]
[399845207,1766734358453,-500.0,0.00032876,120]
[399845208,1766734358464,-500.0,0.00032876,120]
[399845209,1766734358474,-500.0,0.00032876,120]
[399845210,1766734358484,-616.88382654,0.00032876,120]
[399845211,1766734358494,-305.14097886,0.00032876,120]
[399845212,1766734358504,-176.39744378,0.00032876,120]
[399845213,1766734358519,-420.28834753,0.00032876,120]
[399845214,1766734358530,-444.34594801,0.00032876,120]
[399845215,1766734358539,-398.62887716,0.00032876,120]
[399845216,1766734358549,-500.0,0.00032876,120]
[399845217,1766734358560,-162.0829966,0.00032876,120]
[399845218,1766734358569,-249.0431299,0.00032876,120]
[399845219,1766734358579,-343.36142908,0.00032876,120]
[399845220,1766734358590,-251.86878125,0.00032876,120]
[399845221,1766734358601,-529.45752395,0.00032876,120]
[399845222,1766734358611,-464.2781355,0.00032876,120]
[399845223,1766734358622,-201.21733272,0.00032876,120]
[399845224,1766734358632,-193.18853978,0.00032876,120]
[399845225,1766734358642,-430.8396967,0.00032876,120]
[399845226,1766734358652,-419.98817535,0.00032876,120]
[399845227,1766734358662,-326.67050696,0.00032876,120]
[399845228,1766734358672,-444.28230941,0.00032876,120]
[399845229,1766734358819,-331.57413803,0.00032876,120]
[399845230,1766734358830,-462.91178022,0.00032876,120]
[399845231,1766734358840,-487.33850938,0.00032876,120]
[399845232,1766734358851,-432.79958759,0.00032876,120]
[399845233,1766734358861,-603.22630625,0.00032876,120]
[399845235,1766734358870,-341.33997473,0.00032876,120]
[399845236,1766734358881,-295.75452587,0.00032876,120]
[399845237,1766734358891,-507.71160231,0.00032876,120]
[399845238,1766734358901,-498.19670842,0.00032876,120]
[399845239,1766734358912,-487.26514913,0.00032876,120]
[399845240,1766734358922,-424.99698593,0.00032876,120]
[399845241,1766734358933,-364.80355322,0.00032876,120]
[399845242,1766734358943,-367.51420268,0.00032876,120]
[399845243,1766734358954,-500.0,0.00032876,120]
[399845244,1766734358963,-150.6922619,0.00032876,120]
[399845245,1766734358973,-339.0180802,0.00032876,120]
[399845246,1766734358983,-500.0,0.00032876,120]
[399845247,1766734358993,-466.98893969,0.00032876,120]
[399845248,1766734359003,-463.33735046,0.00032876,120]
[399845249,1766734359013,-500.0,0.00032876,120]
[399845250,1766734359023,-513.58864931,0.00032876,120]
[399845251,1766734359032,-645.92219684,0.00032876,120]
[399845252,1766734359043,-325.91333503,0.00032876,120]
[399845253,1766734359053,-429.72190059,0.00032876,120]
[399845254,1766734359062,-265.13661853,0.00032876,120]
[399845255,1766734359073,-280.8846421,0.00032876,120]
[399845256,1766734359083,-500.0,0.00032876,14]
[399845257,1766734359093,-474.93076845,0.00032876,120]
[399845258,1766734359103,-350.59500335,0.00032876,120]
[399845259,1766734359114,-254.87182206,0.00032876,14]
[399845260,1766734359125,-443.39937661,0.00032876,120]
[399845261,1766734359140,-626.38666452,0.00032876,120]
[399845262,1766734359151,-500.0,0.00032876,120]
[399845263,1766734359161,-177.30183078,0.00032876,120]
[399845264,1766734359171,-406.85272403,0.00032876,120]
[399845265,1766734359183,-621.42138214,0.00032876,120]
[399845266,1766734359193,-156.00597601,0.00032876,120]
[399845267,1766734359203,-189.04013519,0.00032876,120]
[399845268,1766734359216,-502.75672091,0.00032876,120]
[399845269,1766734359226,-186.71539286,0.00032876,120]
[399845270,1766734359236,-502.81445731,0.00032876,120]
[399845271,1766734359246,-302.1724982,0.00032876,120]
[399845272,1766734359257,-288.928575,0.00032876,120]
[399845273,1766734359267,-588.08054689,0.00032876,120]
[399845274,1766734359277,-500.0,0.00032876,120]
[399845275,1766734359287,-500.0,0.00032876,120]
[399845276,1766734359297,-500.0,0.00032876,120]
[399845278,1766734359307,-181.89977646,0.00032876,120]
[399845279,1766734359317,-405.92691525,0.00032876,120]
[399845280,1766734359327,-266.49977653,0.00032876,120]
[399845281,1766734359336,-500.0,0.00032876,120]
[399845282,1766734359346,-448.82651467,0.00032876,120]
[399845283,1766734359356,-338.52055021,0.00032876,120]
[399845284,1766734359367,-599.27385641,0.00032876,120]
[399845285,1766734359376,-330.55452484,0.00032876,120]
[399845286,1766734359386,-419.98458379,0.00032876,120]
[399845287,1766734359397,-401.52137775,0.00032876,120]
[399845288,1766734359407,-500.0,0.00032876,120]
[399845289,1766734359418,-274.13649685,0.00032876,120]
[399845290,1766734359428,-472.44310542,0.00032876,120]
[399845291,1766734359439,-397.38437911,0.00032876,120]
[399845292,1766734359450,-395.53043737,0.00032876,120]
[399845293,1766734359461,-500.0,0.00032876,120]
[399845294,1766734359471,-169.11078022,0.00032876,120]
[399845295,1766734359482,-440.8469343,0.00032876,120]
[399845296,1766734359491,-500.0,0.00032876,120]
[399845297,1766734359502,-162.8698086,0.00032876,120]
[399845298,1766734359512,-269.30788823,0.00032876,120]
[399845299,1766734359523,-395.63397335,0.00032876,120]
[399845300,1766734359533,-424.10585475,0.00032876,120]
[399845301,1766734359544,-388.19581494,0.00032876,120]
[399845302,1766734359554,-463.03847745,0.00032876,120]
[399845303,1766734359564,-500.0,0.00032876,120]
[399845304,1766734359575,-491.68356941,0.00032876,120]
[399845305,1766734359584,-582.54463831,0.00032876,120]
[399845306,1766734359594,-439.55497353,0.00032876,120]
[399845307,1766734359605,-277.84315175,0.00032876,120]
[399845308,1766734359616,-411.47592344,0.00032876,120]
[399845309,1766734359626,-528.99654797,0.00032876,120]
[399845310,1766734359636,-455.04038502,0.00032876,120]
[399845311,1766734359648,-494.51035949,0.00032876,120]
[399845312,1766734359658,-285.59104699,0.00032876,120]
[399845313,1766734359669,-387.99936444,0.00032876,120]
[399845314,1766734359679,-409.86248892,0.00032876,120]
[399845315,1766734359689,-476.21651758,0.00032876,120]
[399845317,1766734359699,-460.31290711,0.00032876,120]
[399845318,1766734359710,-343.53048035,0.00032876,120]
[399845319,1766734359723,-596.95371042,0.00032876,120]
[399845320,1766734359733,-409.29655684,0.00032876,120]
[399845321,1766734359743,-445.53025687,0.00032876,120]
[399845322,1766734359752,-500.0,0.00032876,120]
[399845323,1766734359762,-640.85225571,0.00032876,120]
[399845324,1766734359772,-193.68304066,0.00032876,120]
[399845325,1766734359783,-265.01056077,0.00032876,120]
[399845326,1766734359792,-543.86252525,0.00032876,120]
[399845327,1766734359802,-469.27412132,0.00032876,120]
[399845328,1766734359812,-550.29404798,0.00032876,120]
[399845329,1766734359822,-422.15853804,0.00032876,120]
[399845330,1766734359833,-237.55071656,0.00032876,120]
[399845331,1766734359843,-466.65255387,0.00032876,120]
[399845332,1766734359853,-321.39354498,0.00032876,120]
[399845333,1766734359863,-339.31163147,0.00032876,120]
[399845334,1766734359873,-278.23284583,0.00032876,60]
[399845335,1766734359884,-395.70894301,0.00032876,120]
[399845336,1766734359894,-500.0,0.00032876,120]
[399845337,1766734359904,-163.71508402,0.00032876,120]
[399845338,1766734359915,-468.59950305,0.00032876,120]
[399845339,1766734359925,-387.29522897,0.00032876,120]
[399845340,1766734359935,-466.38307998,0.00032876,120]
[399845341,1766734359946,-407.61299809,0.00032876,120]
[399845342,1766734359956,-614.65632252,0.00032876,120]
[399845343,1766734359966,-487.11252109,0.00032876,120]
[399845344,1766734359975,-500.0,0.00032876,120]
[399845345,1766734359985,-190.47462364,0.00032876,120]
[399845346,1766734359995,-448.93209539,0.00032876,120]
[399845347,1766734360006,-500.0,0.00032876,120]
[399845348,1766734360016,-205.98034517,0.00032876,120]
[399845349,1766734360026,-343.43895313,0.00032876,120]
[399845350,1766734360036,-235.59360764,0.00032876,120]
[399845351,1766734360046,-620.98611681,0.00032876,120]
[399845352,1766734360056,-501.23813223,0.00032876,120]
[399845353,1766734360066,-494.34054022,0.00032876,120]
[399845354,1766734360076,-437.48230719,0.00032876,120]
[399845356,1766734360087,-560.74626129,0.00032876,120]
[399845357,1766734360097,-500.0,0.00032876,120]
[399845358,1766734360107,-506.5019774,0.00032876,120]
[399845359,1766734360117,-555.51,0.00032876,120]
[399845360,1766734360127,-555.51,0.00032876,120]
[399845361,1766734360141,-555.51,0.00032876,120]
[399845362,1766734360151,-555.51,0.00032876,120]
[399845363,1766734360161,-555.51,0.00032876,120]
[399845364,1766734360172,-431.46534475,0.00032876,120]
[399845365,1766734360183,-555.51,0.00032876,120]
[399845366,1766734360193,-431.94311049,0.00032876,120]
[399845367,1766734360205,-555.51,0.00032876,120]
[399845368,1766734360215,-555.51,0.00032876,120]
[399845369,1766734360224,-555.51,0.00032876,120]
[399845370,1766734360234,-555.51,0.00032876,120]
[399845371,1766734360243,-555.51,0.00032876,120]
[399845372,1766734360254,-555.51,0.00032876,120]
[399845373,1766734360264,-555.51,0.00032876,120]
[399845374,1766734360275,-358.91955415,0.00032876,120]
[399845375,1766734360284,-469.37913306,0.00032876,120]
[399845376,1766734360294,-555.51,0.00032876,120]
[399845377,1766734360304,-555.51,0.00032876,120]
[399845378,1766734360314,-555.51,0.00032876,120]
[399845379,1766734360323,-555.51,0.00032876,120]
[399845380,1766734360333,-555.51,0.00032876,120]
[399845381,1766734360342,-555.51,0.00032876,120]
[399845382,1766734360352,-555.51,0.00032876,120]
[399845383,1766734360362,-368.70414377,0.00032876,120]
[399845384,1766734360371,-555.51,0.00032876,120]
[399845385,1766734360380,-555.51,0.00032876,120]
[399845386,1766734360390,-555.51,0.00032876,120]
[399845387,1766734360399,-555.69887271,0.00032876,120]
[399845388,1766734360409,-347.09212472,0.00032876,120]
[399845389,1766734360419,-350.42264339,0.00032876,120]
[399845390,1766734360429,-333.07571539,0.00032876,120]
[399845391,1766734360439,-171.43368747,0.00032876,120]
[399845392,1766734360449,-500.0,0.00032876,120]
[399845393,1766734360459,-500.0,0.00032876,120]
[399845394,1766734360468,-500.0,0.00032876,120]
[399845395,1766734360478,-500.0,0.00032876,120]
[399845396,1766734360487,-500.0,0.00032876,120]
[399845397,1766734360497,-500.0,0.00032876,120]
[399845398,1766734360506,-470.4852764,0.00032876,120]
[399845399,1766734360516,-223.6152778,0.00032876,120]
[399845400,1766734360525,-204.23029773,0.00032876,120]
[399845401,1766734360535,-355.91577507,0.00032876,120]
[399845402,1766734360545,-413.84136644,0.00032876,120]
[399845403,1766734360555,-192.8218102,0.00032876,120]
[399845404,1766734360564,-408.71757245,0.00032876,120]
[399845405,1766734360574,-380.80252805,0.00032876,120]
[399845406,1766734360584,-465.69912721,0.00032876,120]
[399845407,1766734360594,-589.28,0.00032876,5]
[399845408,1766734360604,-441.73870143,0.00032876,120]
[399845409,1766734360613,-589.28,0.00032876,5]
[399845410,1766734360623,-589.28,0.00032876,5]
[399845411,1766734360634,-589.28,0.00032876,5]
[399845412,1766734360643,-202.87475067,0.00032876,120]
[399845413,1766734360653,-589.28,0.00032876,5]
[399845414,1766734360663,-589.28,0.00032876,5]
[399845415,1766734360673,-589.28,0.00032876,5]
[399845416,1766734360683,-589.28,0.00032876,5]
[399845417,1766734360693,-200.56655134,0.00032876,120]
[399845418,1766734360703,-193.77457294,0.00032876,120]
[399845419,1766734360713,-589.28,0.00032876,5]
[399845420,1766734360723,-589.28,0.00032876,5]
[399845421,1766734360732,-589.28,0.00032876,5]
[399845422,1766734360742,-589.28,0.00032876,5]
[399845423,1766734360751,-589.28,0.00032876,5]
[399845424,1766734360761,-589.28,0.00032876,5]
[399845425,1766734360770,-589.28,0.00032876,5]
[399845426,1766734360780,-589.28,0.00032876,5]
[399845427,1766734360789,-589.28,0.00032876,5]
[399845428,1766734360799,-416.48502146,0.00032876,120]
[399845429,1766734360808,-589.28,0.00032876,5]
[399845430,1766734360818,-374.09627535,0.00032876,120]
[399845431,1766734360827,-589.28,0.00032876,5]
[399845432,1766734360836,-589.28,0.00032876,5]
[399845433,1766734360846,-150.63090156,0.00032876,120]
[399845434,1766734360856,-589.28,0.00032876,5]
[399845435,1766734360866,-589.28,0.00032876,5]
[399845436,1766734360875,-589.28,0.00032876,5]
[399845437,1766734360886,-589.32767752,0.00032876,5]
[399845438,1766734360895,-649.67574612,0.00032876,120]
[399845439,1766734360904,-1988.98,0.00032876,45]
[399845440,1766734360915,-293.26388443,0.00032876,120]
[399845441,1766734360924,-321.05233545,0.00032876,120]
[399845442,1766734360935,-1988.98,0.00032876,45]
[399845443,1766734360945,-1988.98,0.00032876,45]
[399845444,1766734360955,-1988.98,0.00032876,45]
[399845445,1766734360964,-1988.98,0.00032876,45]
[399845446,1766734360974,-1988.98,0.00032876,45]
[399845447,1766734360984,-1988.98,0.00032876,45]
[399845448,1766734360994,-1988.98,0.00032876,45]
[399845449,1766734361004,-1988.98,0.00032876,45]
[399845450,1766734361320,-1988.98,0.00032876,45]
[399845451,1766734361340,-1988.98,0.00032876,45]
[399845452,1766734361351,-1988.98,0.00032876,45]
[399845453,1766734361361,-1988.98,0.00032876,45]
[399845454,1766734361371,-173.74042605,0.00032876,120]
[399845455,1766734361381,-1988.98,0.00032876,45]
[399845456,1766734361391,-364.9314006,0.00032876,120]
[399845457,1766734361400,-1988.98,0.00032876,45]
[399845458,1766734361410,-500.0,0.00032876,120]
[399845459,1766734361420,-1988.98,0.00032876,45]
[399845460,1766734361431,-375.40401303,0.00032876,120]
[399845461,1766734361442,-452.79039551,0.00032876,120]
[399845462,1766734361452,-389.12825692,0.00032876,120]
[399845463,1766734361462,-1988.98,0.00032876,45]
[399845464,1766734361472,-1988.98,0.00032876,45]
[399845465,1766734361483,-1988.98,0.00032876,45]
[399845466,1766734361493,-1988.98,0.00032876,45]
[399845467,1766734361504,-1988.98,0.00032876,45]
[399845468,1766734361514,-181.41304385,0.00032876,120]
[399845469,1766734361524,-1988.98,0.00032876,45]
[399845470,1766734361534,-471.40743161,0.00032876,120]
[399845471,1766734361545,-1988.98,0.00032876,45]
[399845472,1766734361555,-1989.0046277,0.00032876,45]
[399845473,1766734361565,-242.39527217,0.00032876,120]
[399845474,1766734361575,-310.54638243,0.00032876,120]
[399845475,1766734361585,-558.35805036,0.00032876,120]
[399845476,1766734361595,-483.96261,0.00032876,120]
[399845477,1766734361605,-206.25202629,0.00032876,2]
[399845478,1766734361615,-236.23261278,0.00032876,120]
[399845479,1766734361625,-498.01346657,0.00032876,120]
[399845480,1766734361635,-421.35720943,0.00032876,120]
[399845481,1766734361645,-161.21243063,0.00032876,120]
[399845482,1766734361655,-500.0,0.00032876,120]
[399845483,1766734361666,-243.06269748,0.00032876,120]
[399845484,1766734361676,-228.75153706,0.00032876,120]
[399845485,1766734361686,-500.0,0.00032876,120]
[399845486,1766734361696,-500.0,0.00032876,120]
[399845487,1766734361706,-500.0,0.00032876,2]
[399845488,1766734361715,-182.52477372,0.00032876,120]
[399845489,1766734361725,-500.0,0.00032876,2]
[399845490,1766734361735,-437.38411383,0.00032876,120]
[399845491,1766734361745,-387.5535695,0.00032876,120]
[399845492,1766734361754,-500.0,0.00032876,2]
[399845493,1766734361763,-501.43992962,0.00032876,2]
[399845494,1766734361773,-301.34661389,0.00032876,120]
[399845495,1766734361783,-169.0340072,0.00032876,120]
[399845496,1766734361791,-366.46137408,0.00032876,120]
[399845497,1766734361801,-478.65236909,0.00032876,120]
[399845498,1766734361810,-512.14515048,0.00032876,120]
[399845499,1766734361820,-346.72054291,0.00032876,120]
[399845500,1766734361829,-462.68449964,0.00032876,120]
[399845501,1766734361839,-234.48046641,0.00032876,120]
[399845502,1766734361848,-500.0,0.00032876,2]
[399845503,1766734361858,-309.91543065,0.00032876,2]
[399845504,1766734361868,-277.59094323,0.00032876,120]
[399845505,1766734361878,-618.58868266,0.00032876,120]
[399845506,1766734361888,-284.35930645,0.00032876,120]
[399845507,1766734361898,-212.88557168,0.00032876,120]
[399845508,1766734361908,-285.21411029,0.00032876,120]
[399845509,1766734361919,-245.60019753,0.00032876,120]
[399845510,1766734361929,-397.38315267,0.00032876,120]
[399845511,1766734361939,-446.76275708,0.00032876,120]
[399845512,1766734361949,-497.81632351,0.00032876,120]
[399845513,1766734361958,-500.0,0.00032876,120]
[399845514,1766734361968,-500.0,0.00032876,120]
[399845515,1766734361978,-191.31842339,0.00032876,120]
[399845516,1766734361987,-396.30528048,0.00032876,120]
[399845517,1766734361997,-335.89674416,0.00032876,2]
[399845518,1766734362007,-484.30100167,0.00032876,2]
[399845519,1766734362017,-383.50948446,0.00032876,2]
[399845520,1766734362027,-229.81502958,0.00032876,120]
[399845521,1766734362037,-598.67822379,0.00032876,2]
[399845522,1766734362047,-184.04991244,0.00032876,2]
[399845523,1766734362056,-191.29332945,0.00032876,2]
[399845524,1766734362066,-298.56548799,0.00032876,2]
[399845525,1766734362075,-500.0,0.00032876,2]
[399845526,1766734362085,-500.0,0.00032876,2]